[Event "Israeli U18-Team-ch 2024"]
[Site "Rishon LeZion"]
[Date "2024.08.01"]
[Round "6.3"]
[White "Kochavi, Dana"]
[Black "Gilor, Amit"]
[Result "1/2-1/2"]
[ECO "B45"]
[WhiteElo "2135"]
[BlackElo "1905"]
[Annotator "RC"]
[PlyCount "285"]
[EventDate "2024.08.01"]
[EventType "team-tourn"]
[EventCountry "ISR"]
[SourceTitle "playchess.com"]
[Source "ChessBase"]
[SourceQuality "1"]
[TimeControl "3000+10"]

1. e4 {[%emt 0:00:01]} c5 {[%emt 0:00:07]} 2. Nf3 {[%emt 0:00:04]} e6 {[%emt 0:00:07]} 3. d4 {[%emt 0:00:02]} cxd4 {[%emt 0:00:06]} 4. Nxd4 {[%emt 0:00:03]} Nf6 {[%emt 0:00:09]} 5. Nc3 {[%emt 0:00:04]} Nc6 {[%emt 0:00:06]} 6. Ndb5 {[%emt 0:03:19]} Bb4 {[%emt 0:00:08]} 7. a3 {[%emt 0:00:03]} Bxc3+ {[%emt 0:00:07]} 8. Nxc3 {[%emt 0:00:03]} d5 {[%emt 0:00:18]} 9. exd5 {[%emt 0:01:45]} exd5 {[%emt 0:00:09]} 10. Bg5 {[%emt 0:01:17]} O-O {[%emt 0:05:50]} 11. Bd3 {[%emt 0:04:02]} Re8+ {[%emt 0:01:54]} 12. Ne2 {[%emt 0:01:23]} d4 {[%emt 0:02:30]} 13. O-O {[%emt 0:04:56]} Bg4 {[%emt 0:03:06]} 14. h3 {[%emt 0:00:16]} Bxe2 {[%emt 0:00:37]} 15. Bxe2 {[%emt 0:00:01]} Qd6 {[%emt 0:02:13]} 16. Bd3 {[%emt 0:01:43]} a6 {[%emt 0:04:16]} 17. Bh4 {[%emt 0:07:56]} Ne5 {[%emt 0:02:35]} 18. Bg3 {[%emt 0:00:19]} Qb6 {[%emt 0:00:37]} 19. Rb1 {[%emt 0:01:19]} Nxd3 {[%emt 0:02:23]} 20. Qxd3 {[%emt 0:00:02]} Ne4 {[%emt 0:00:21]} 21. Bh2 {[%emt 0:10:31]} Qf6 {[%emt 0:04:26]} 22. Rbd1 {[%emt 0:02:59]} Rad8 {[%emt 0:01:38]} 23. Qc4 {[%emt 0:04:54]} b5 {[%emt 0:03:12]} 24. Qb4 {[%emt 0:00:07]} Qb6 {[%emt 0:01:01]} 25. a4 {[%emt 0:02:09]} f5 {[%emt 0:02:14]} 26. Rd3 {[%emt 0:01:24]} Qc5 {[%emt 0:02:27]} 27. Qb3+ {[%emt 0:00:00]} Kh8 {[%emt 0:04:28]} 28. axb5 {[%emt 0:00:04]} axb5 {[%emt 0:00:13]} 29. Rfd1 {[%emt 0:00:35]} b4 {[%emt 0:01:22]} 30. Bf4 {[%emt 0:01:07]} Qb6 {[%emt 0:00:38]} 31. Qc4 {[%emt 0:00:28]} Rc8 {[%emt 0:00:22]} 32. Qxd4 {[%emt 0:00:01]} Qxd4 {[%emt 0:00:07]} 33. Rxd4 {[%emt 0:00:01]} Rxc2 {[%emt 0:00:02]} 34. Rxb4 {[%emt 0:00:01]} Nxf2 {[%emt 0:00:29]} 35. Rd2 {[%emt 0:00:11]} Rxd2 {[%emt 0:00:22]} 36. Bxd2 {[%emt 0:00:01]} Ne4 {[%emt 0:00:47]} 37. Be3 {[%emt 0:00:00]} Nd6 {[%emt 0:01:12]} 38. Bc5 {[%emt 0:00:26]} Ne4 {[%emt 0:00:05]} 39. Bd4 {[%emt 0:00:01]} Kg8 {[%emt 0:00:35]} 40. Rb7 {[%emt 0:00:14]} Nf6 {[%emt 0:00:01]} 41. Bxf6 {[%emt 0:00:04]} gxf6 {[%emt 0:00:00]} 42. Kf2 {[%emt 0:00:01]} Rc8 {[%emt 0:00:08]} 43. Kf3 {[%emt 0:03:23]} Rc2 {[%emt 0:00:02]} 44. b4 {[%emt 0:00:00]} Rb2 {[%emt 0:00:06]} 45. b5 {[%emt 0:00:00]} Rb1 {[%emt 0:00:08]} 46. b6 {[%emt 0:00:00]} Rb2 {[%emt 0:00:04]} 47. Rb8+ {[%emt 0:00:00]} Kg7 {[%emt 0:00:01]} 48. b7 {[%emt 0:00:00]} Rb1 {[%emt 0:00:17]} 49. Kf4 {[%emt 0:00:00]} Rf1+ {[%emt 0:00:02]} 50. Ke3 {[%emt 0:00:00]} Rb1 {[%emt 0:00:02]} 51. Kd4 {[%emt 0:00:00]} Rd1+ {[%emt 0:00:02]} 52. Kc5 {[%emt 0:00:00]} Rc1+ {[%emt 0:00:19]} 53. Kd5 {[%emt 0:00:00]} Rd1+ {[%emt 0:00:01]} 54. Ke6 {[%emt 0:00:00]} Re1+ {[%emt 0:00:01]} 55. Kxf5 {[%emt 0:00:00]} Rf1+ {[%emt 0:00:01]} 56. Kg4 {[%emt 0:00:00]} Rb1 {[%emt 0:00:01]} 57. Kf3 {[%emt 0:00:00]} Rf1+ {[%emt 0:00:08]} 58. Ke2 {[%emt 0:00:00]} Rb1 {[%emt 0:00:01]} 59. g4 {[%emt 0:00:00]} Rb2+ {[%emt 0:00:11]} 60. Kf3 {[%emt 0:00:00]} Rb3+ {[%emt 0:00:02]} 61. Kf4 {[%emt 0:00:02]} Rb4+ {[%emt 0:00:02]} 62. Kg3 {[%emt 0:00:01]} Rb3+ {[%emt 0:00:01]} 63. Kh4 {[%emt 0:00:01]} Rb5 {[%emt 0:00:03]} 64. Kg3 {[%emt 0:00:22]} Rb3+ {[%emt 0:00:01]} 65. Kf4 {[%emt 0:00:01]} Rb4+ {[%emt 0:00:01]} 66. Ke3 {[%emt 0:00:01]} Rb3+ {[%emt 0:00:01]} 67. Kd4 {[%emt 0:00:02]} Rb4+ {[%emt 0:00:06]} 68. Kd5 {[%emt 0:00:35]} Rb1 {[%emt 0:00:11]} 69. h4 {[%emt 0:00:01]} Rb2 {[%emt 0:00:21]} 70. Kc4 {[%emt 0:01:14]} Rb1 {[%emt 0:00:05]} 71. Kc3 {[%emt 0:00:35]} Rb6 {[%emt 0:00:12]} 72. Kc2 {[%emt 0:00:47]} Rc6+ {[%emt 0:00:03]} 73. Kd3 {[%emt 0:00:08]} Rb6 {[%emt 0:00:04]} 74. Ke4 {[%emt 0:00:01]} Rb4+ {[%emt 0:00:06]} 75. Kd5 {[%emt 0:00:02]} Rb1 {[%emt 0:00:01]} 76. Kc6 {[%emt 0:00:11]} Rc1+ {[%emt 0:00:03]} 77. Kb5 {[%emt 0:00:03]} Rb1+ {[%emt 0:00:02]} 78. Kc5 {[%emt 0:00:02]} Rc1+ {[%emt 0:00:01]} 79. Kd6 {[%emt 0:00:00]} Rd1+ {[%emt 0:00:03]} 80. Ke6 {[%emt 0:00:02]} Re1+ {[%emt 0:00:05]} 81. Kf5 {[%emt 0:00:01]} Rf1+ {[%emt 0:00:02]} 82. Ke4 {[%emt 0:00:01]} Re1+ {[%emt 0:00:02]} 83. Kf3 {[%emt 0:00:01]} Rf1+ {[%emt 0:00:03]} 84. Ke2 {[%emt 0:00:01]} Rb1 {[%emt 0:00:02]} 85. Ke3 {[%emt 0:01:37]} Rb3+ {[%emt 0:00:05]} 86. Kf4 {[%emt 0:00:01]} Rb4+ {[%emt 0:00:02]} 87. Kf5 {[%emt 0:00:01]} Rb5+ {[%emt 0:00:02]} 88. Ke6 {[%emt 0:00:02]} Rb6+ {[%emt 0:00:01]} 89. Kd7 {[%emt 0:00:54]} Rb1 {[%emt 0:00:01]} 90. Ke6 {[%emt 0:00:07]} Rb6+ {[%emt 0:00:02]} 91. Kf5 {[%emt 0:00:01]} Rb5+ {[%emt 0:00:01]} 92. Kf4 {[%emt 0:00:01]} Rb4+ {[%emt 0:00:01]} 93. Ke3 {[%emt 0:00:00]} Rb3+ {[%emt 0:00:02]} 94. Kd4 {[%emt 0:00:01]} Rb4+ {[%emt 0:00:02]} 95. Kc3 {[%emt 0:00:07]} Rb1 {[%emt 0:00:03]} 96. h5 {[%emt 0:00:30]} Rb6 {[%emt 0:00:44]} 97. Kc4 {[%emt 0:00:19]} Rb1 {[%emt 0:00:04]} 98. Kc5 {[%emt 0:00:03]} Rc1+ {[%emt 0:00:02]} 99. Kd6 {[%emt 0:00:01]} Rd1+ {[%emt 0:00:01]} 100. Ke6 {[%emt 0:00:01]} Re1+ {[%emt 0:00:02]} 101. Kf5 {[%emt 0:00:01]} Rf1+ {[%emt 0:00:01]} 102. Ke4 {[%emt 0:00:01]} Re1+ {[%emt 0:00:01]} 103. Kf3 {[%emt 0:00:01]} Rf1+ {[%emt 0:00:01]} 104. Kg3 {[%emt 0:00:00]} Rg1+ {[%emt 0:00:02]} 105. Kh2 {[%emt 0:00:09]} Rb1 {[%emt 0:00:03]} 106. Kh3 {[%emt 0:00:01]} Rh1+ {[%emt 0:00:02]} 107. Kg2 {[%emt 0:00:00]} Rb1 {[%emt 0:00:02]} 108. Kg3 {[%emt 0:00:23]} Rg1+ {[%emt 0:00:04]} 109. Kf4 {[%emt 0:00:01]} Rf1+ {[%emt 0:00:01]} 110. Ke3 {[%emt 0:00:01]} Re1+ {[%emt 0:00:02]} 111. Kd2 {[%emt 0:00:00]} Rb1 {[%emt 0:00:01]} 112. Kc3 {[%emt 0:00:12]} Rb6 {[%emt 0:00:04]} 113. Kd4 {[%emt 0:00:02]} Rb1 {[%emt 0:00:03]} 114. Kd5 {[%emt 0:00:07]} Rd1+ {[%emt 0:00:03]} 115. Kc5 {[%emt 0:00:16]} Rc1+ {[%emt 0:00:01]} 116. Kb6 {[%emt 0:00:04]} Rb1+ {[%emt 0:00:02]} 117. Kc6 {[%emt 0:00:40]} Rc1+ {[%emt 0:00:02]} 118. Kd6 {[%emt 0:00:01]} Rd1+ {[%emt 0:00:01]} 119. Kc5 {[%emt 0:00:06]} Rc1+ {[%emt 0:00:03]} 120. Kd4 {[%emt 0:00:01]} Rd1+ {[%emt 0:00:02]} 121. Kc3 {[%emt 0:02:52]} Rb1 {[%emt 0:00:01]} 122. Kc2 {[%emt 0:00:00]} Rb6 {[%emt 0:00:03]} 123. Kd3 {[%emt 0:00:00]} Rb1 {[%emt 0:00:03]} 124. Ke4 {[%emt 0:00:00]} Re1+ {[%emt 0:00:02]} 125. Kf4 {[%emt 0:00:00]} Rf1+ {[%emt 0:00:01]} 126. Ke4 {[%emt 0:00:00]} Re1+ {[%emt 0:00:02]} 127. Kf5 {[%emt 0:00:00]} Rf1+ {[%emt 0:00:01]} 128. Ke6 {[%emt 0:00:00]} Re1+ {[%emt 0:00:01]} 129. Kd6 {[%emt 0:00:00]} Rd1+ {[%emt 0:00:01]} 130. Kc5 {[%emt 0:00:00]} Rc1+ {[%emt 0:00:01]} 131. Kb4 {[%emt 0:00:00]} Rb1+ {[%emt 0:00:02]} 132. Kc3 {[%emt 0:00:00]} Rb6 {[%emt 0:00:01]} 133. Kc2 {[%emt 0:00:00]} Rc6+ {[%emt 0:00:06]} 134. Kd2 {[%emt 0:00:00]} Rb6 {[%emt 0:00:01]} 135. Kd3 {[%emt 0:00:00]} Rb1 {[%emt 0:00:02]} 136. Ke4 {[%emt 0:00:00]} Re1+ {[%emt 0:00:03]} 137. Kf3 {[%emt 0:00:00]} Rf1+ {[%emt 0:00:02]} 138. Kg3 {[%emt 0:00:00]} Rg1+ {[%emt 0:00:01]} 139. Kf2 {[%emt 0:00:00]} Rb1 {[%emt 0:00:02]} 140. h6+ {[%emt 0:00:00]} Kxh6 {[%emt 0:00:05]} 141. Kf3 {[%emt 0:00:00]} Kg7 {[%emt 0:00:10]} 142. Kf4 {[%emt 0:00:00]} Rf1+ {[%emt 0:00:02]} 143. Kg3 {[%emt 0:00:00]} 1/2-1/2

[Event "Israeli U18-Team-ch 2024"]
[Site "Rishon LeZion"]
[Date "2024.08.01"]
[Round "6.4"]
[White "Magen, Ofek"]
[Black "Duchan, Yoav"]
[Result "0-1"]
[ECO "A41"]
[WhiteElo "1911"]
[BlackElo "2008"]
[Annotator "RC"]
[PlyCount "58"]
[EventDate "2024.08.01"]
[EventType "team-tourn"]
[EventCountry "ISR"]
[SourceTitle "playchess.com"]
[Source "ChessBase"]
[SourceQuality "1"]
[TimeControl "3000+10"]

1. d4 {[%emt 0:00:50]} g6 {[%emt 0:00:06]} 2. c4 {[%emt 0:00:19]} Bg7 {[%emt 0:00:04]} 3. Nc3 {[%emt 0:00:08]} d6 {[%emt 0:00:03]} 4. Nf3 {[%emt 0:00:50]} Nc6 {[%emt 0:00:07]} 5. e3 {[%emt 0:02:02]} Nf6 {[%emt 0:00:40]} 6. a3 {[%emt 0:00:57]} O-O {[%emt 0:00:40]} 7. Be2 {[%emt 0:01:06]} e5 {[%emt 0:01:11]} 8. O-O {[%emt 0:01:06]} h6 {[%emt 0:06:12]} 9. b4 {[%emt 0:03:01]} a6 {[%emt 0:01:44]} 10. Bb2 {[%emt 0:02:41]} exd4 {[%emt 0:04:33]} 11. exd4 {[%emt 0:00:28]} d5 {[%emt 0:03:06]} 12. Ne5 {[%emt 0:02:09]} Be6 {[%emt 0:00:52]} 13. Bf3 {[%emt 0:01:30]} dxc4 {[%emt 0:04:01]} 14. Nxc6 {[%emt 0:01:43]} bxc6 {[%emt 0:00:05]} 15. Bxc6 {[%emt 0:00:16]} Rb8 {[%emt 0:00:40]} 16. d5 {[%emt 0:03:17]} Nxd5 {[%emt 0:02:13]} 17. Qc1 {[%emt 0:09:49]} Nxc3 {[%emt 0:03:22]} 18. Bxc3 {[%emt 0:00:01]} Bxc3 {[%emt 0:00:37]} 19. Qxc3 {[%emt 0:00:01]} Qg5 {[%emt 0:01:43]} 20. f4 {[%emt 0:02:58]} Qh5 {[%emt 0:04:14]} 21. Rae1 {[%emt 0:00:48]} Rbd8 {[%emt 0:02:31]} 22. Re5 {[%emt 0:01:38]} Qh4 {[%emt 0:00:31]} 23. g3 {[%emt 0:01:09]} Qf6 {[%emt 0:01:08]} 24. Be4 {[%emt 0:00:27]} Bh3 {[%emt 0:00:49]} 25. Re1 {[%emt 0:00:32]} Rde8 {[%emt 0:02:37]} 26. Bd5 {[%emt 0:02:54]} Qb6+ {[%emt 0:02:55]} 27. R1e3 {[%emt 0:02:31]} Rxe5 {[%emt 0:00:26]} 28. Qxe5 {[%emt 0:00:35]} Bd7 {[%emt 0:02:15]} 29. Qe7 {[%emt 0:01:23]} Be6 {[%emt 0:01:09]} 0-1

[Event "Israeli U18-Team-ch 2024"]
[Site "Rishon LeZion"]
[Date "2024.08.01"]
[Round "6.7"]
[White "Zakin, Ilay"]
[Black "Afek, Itay"]
[Result "0-1"]
[ECO "B12"]
[WhiteElo "2306"]
[BlackElo "1913"]
[Annotator "RC"]
[PlyCount "98"]
[EventDate "2024.08.01"]
[EventType "team-tourn"]
[EventCountry "ISR"]
[SourceTitle "playchess.com"]
[Source "ChessBase"]
[SourceQuality "1"]
[TimeControl "3000+10"]

1. e4 {[%emt 0:00:03]} c6 {[%emt 0:00:04]} 2. d4 {[%emt 0:00:04]} d5 {[%emt 0:00:03]} 3. e5 {[%emt 0:00:04]} c5 {[%emt 0:00:06]} 4. Nf3 {[%emt 0:00:03]} Nc6 {[%emt 0:00:14]} 5. Bb5 {[%emt 0:10:28]} Bg4 {[%emt 0:00:49]} 6. dxc5 {[%emt 0:01:38]} Qa5+ {[%emt 0:00:09]} 7. Nc3 {[%emt 0:00:02]} e6 {[%emt 0:00:09]} 8. Qd4 {[%emt 0:05:25]} Bxf3 {[%emt 0:02:32]} 9. gxf3 {[%emt 0:00:20]} Qxb5 {[%emt 0:01:14]} 10. Nxb5 {[%emt 0:00:02]} Nxd4 {[%emt 0:00:02]} 11. Nxd4 {[%emt 0:00:01]} Bxc5 {[%emt 0:00:47]} 12. Nb5 {[%emt 0:02:02]} Rd8 {[%emt 0:06:14]} 13. Be3 {[%emt 0:03:46]} d4 {[%emt 0:04:28]} 14. Bf4 {[%emt 0:01:47]} Ne7 {[%emt 0:04:09]} 15. O-O-O {[%emt 0:01:18]} Nf5 {[%emt 0:01:31]} 16. Rd3 {[%emt 0:04:57]} a6 {[%emt 0:04:30]} 17. Na3 {[%emt 0:00:47]} Bxa3 {[%emt 0:02:16]} 18. Rxa3 {[%emt 0:00:13]} h6 {[%emt 0:04:19]} 19. Rd1 {[%emt 0:00:52]} Rd5 {[%emt 0:00:30]} 20. Rb3 {[%emt 0:00:41]} g5 {[%emt 0:01:02]} 21. Bg3 {[%emt 0:03:11]} Rd7 {[%emt 0:01:03]} 22. Rbd3 {[%emt 0:01:29]} Ke7 {[%emt 0:00:56]} 23. f4 {[%emt 0:01:16]} g4 {[%emt 0:00:26]} 24. f3 {[%emt 0:00:12]} Rg8 {[%emt 0:02:03]} 25. Kb1 {[%emt 0:02:26]} h5 {[%emt 0:00:37]} 26. Bf2 {[%emt 0:01:45]} h4 {[%emt 0:02:37]} 27. c3 {[%emt 0:01:41]} gxf3 {[%emt 0:01:44]} 28. Bxd4 {[%emt 0:04:29]} Nxd4 {[%emt 0:00:45]} 29. cxd4 {[%emt 0:00:01]} f2 {[%emt 0:00:46]} 30. Rf3 {[%emt 0:01:52]} Rg2 {[%emt 0:01:35]} 31. h3 {[%emt 0:00:44]} Rg1 {[%emt 0:01:48]} 32. Kc2 {[%emt 0:00:01]} Rc7+ {[%emt 0:00:50]} 33. Kd2 {[%emt 0:00:02]} Rc4 {[%emt 0:00:40]} 34. Ke2 {[%emt 0:01:34]} Rc2+ {[%emt 0:00:05]} 35. Ke3 {[%emt 0:00:30]} Rxd1 {[%emt 0:00:06]} 36. Rxf2 {[%emt 0:00:01]} Rxf2 {[%emt 0:00:03]} 37. Kxf2 {[%emt 0:00:01]} Rxd4 {[%emt 0:00:02]} 38. Kf3 {[%emt 0:00:01]} Rd2 {[%emt 0:00:03]} 39. Kg4 {[%emt 0:00:06]} Rxb2 {[%emt 0:00:02]} 40. a4 {[%emt 0:00:04]} b5 {[%emt 0:00:01]} 41. axb5 {[%emt 0:00:01]} axb5 {[%emt 0:00:02]} 42. Kxh4 {[%emt 0:00:01]} b4 {[%emt 0:00:00]} 43. Kg3 {[%emt 0:00:16]} b3 {[%emt 0:00:01]} 44. h4 {[%emt 0:00:01]} Rb1 {[%emt 0:00:03]} 45. Kg2 {[%emt 0:00:11]} b2 {[%emt 0:00:02]} 46. h5 {[%emt 0:00:01]} Rg1+ {[%emt 0:00:02]} 47. Kxg1 {[%emt 0:00:02]} b1=Q+ {[%emt 0:00:02]} 48. Kg2 {[%emt 0:00:01]} Qf5 {[%emt 0:00:02]} 49. Kg3 {[%emt 0:00:01]} Qxh5 {[%emt 0:00:02]} 0-1

[Event "Israeli U18-Team-ch 2024"]
[Site "Rishon LeZion"]
[Date "2024.08.01"]
[Round "6.8"]
[White "Pearl, Oliver"]
[Black "Tashkinova, Sofiia"]
[Result "0-1"]
[ECO "A05"]
[WhiteElo "1795"]
[BlackElo "2127"]
[Annotator "RC"]
[PlyCount "136"]
[EventDate "2024.08.01"]
[EventType "team-tourn"]
[EventCountry "ISR"]
[SourceTitle "playchess.com"]
[Source "ChessBase"]
[SourceQuality "1"]
[TimeControl "3000+10"]

1. Nf3 {[%emt 0:00:08]} Nf6 {[%emt 0:00:16]} 2. g3 {[%emt 0:00:34]} b5 {[%emt 0:00:52]} 3. Na3 {[%emt 0:01:05]} a6 {[%emt 0:02:21]} 4. c4 {[%emt 0:00:20]} b4 {[%emt 0:00:59]} 5. Nc2 {[%emt 0:00:14]} e6 {[%emt 0:01:07]} 6. Bg2 {[%emt 0:00:41]} Bb7 {[%emt 0:00:45]} 7. O-O {[%emt 0:01:49]} Be7 {[%emt 0:01:35]} 8. d4 {[%emt 0:02:47]} O-O {[%emt 0:03:00]} 9. d5 {[%emt 0:04:48]} exd5 {[%emt 0:07:03]} 10. Nh4 {[%emt 0:02:23]} c6 {[%emt 0:05:46]} 11. cxd5 {[%emt 0:01:38]} Nxd5 {[%emt 0:00:09]} 12. Nf5 {[%emt 0:00:48]} Bc5 {[%emt 0:05:35]} 13. e4 {[%emt 0:10:35]} Ne7 {[%emt 0:04:43]} 14. Nxg7 {[%emt 0:12:27]} Kxg7 {[%emt 0:04:20]} 15. Qh5 {[%emt 0:01:20]} d6 {[%emt 0:03:29]} 16. Bg5 {[%emt 0:06:25]} Nd7 {[%emt 0:04:01]} 17. Bh3 {[%emt 0:01:59]} f6 {[%emt 0:02:26]} 18. Bh6+ {[%emt 0:02:02]} Kh8 {[%emt 0:00:06]} 19. Qg4 {[%emt 0:00:24]} Ng6 {[%emt 0:00:36]} 20. Qxd7 {[%emt 0:00:10]} Qxd7 {[%emt 0:00:01]} 21. Bxd7 {[%emt 0:00:01]} Rf7 {[%emt 0:00:27]} 22. Bf5 {[%emt 0:00:10]} Bc8 {[%emt 0:01:42]} 23. Bxc8 {[%emt 0:00:29]} Rxc8 {[%emt 0:00:02]} 24. Be3 {[%emt 0:00:15]} Bxe3 {[%emt 0:01:29]} 25. Nxe3 {[%emt 0:00:01]} Re8 {[%emt 0:00:06]} 26. Nf5 {[%emt 0:00:03]} Rd7 {[%emt 0:00:07]} 27. Rfe1 {[%emt 0:00:35]} Ne5 {[%emt 0:00:11]} 28. Kg2 {[%emt 0:00:18]} Nd3 {[%emt 0:00:23]} 29. Re2 {[%emt 0:00:01]} d5 {[%emt 0:00:09]} 30. f3 {[%emt 0:00:26]} dxe4 {[%emt 0:00:24]} 31. fxe4 {[%emt 0:00:07]} c5 {[%emt 0:00:02]} 32. b3 {[%emt 0:00:14]} a5 {[%emt 0:00:43]} 33. Kf3 {[%emt 0:00:10]} a4 {[%emt 0:00:13]} 34. Ne3 {[%emt 0:00:11]} Ne5+ {[%emt 0:00:23]} 35. Kf4 {[%emt 0:00:08]} Nd3+ {[%emt 0:00:04]} 36. Kf3 {[%emt 0:00:02]} Rd4 {[%emt 0:00:15]} 37. Nd5 {[%emt 0:00:08]} f5 {[%emt 0:00:14]} 38. Nf6 {[%emt 0:00:21]} Re6 {[%emt 0:00:02]} 39. Nh5 {[%emt 0:00:11]} fxe4+ {[%emt 0:00:03]} 40. Kg2 {[%emt 0:00:05]} Re5 {[%emt 0:00:27]} 41. Nf6 {[%emt 0:00:12]} Kg7 {[%emt 0:00:03]} 42. Rf1 {[%emt 0:00:10]} axb3 {[%emt 0:00:09]} 43. axb3 {[%emt 0:00:01]} e3 {[%emt 0:00:17]} 44. h3 {[%emt 0:00:17]} Re6 {[%emt 0:00:07]} 45. Ng4 {[%emt 0:00:06]} Rde4 {[%emt 0:00:02]} 46. Rf3 {[%emt 0:00:19]} h5 {[%emt 0:00:22]} 47. Nxe3 {[%emt 0:00:09]} Nc1 {[%emt 0:00:11]} 48. Nf5+ {[%emt 0:00:01]} Kg6 {[%emt 0:00:03]} 49. Ref2 {[%emt 0:00:19]} Re2 {[%emt 0:00:04]} 50. Nh4+ {[%emt 0:00:11]} Kh6 {[%emt 0:00:05]} 51. Nf5+ {[%emt 0:00:02]} Kh7 {[%emt 0:00:02]} 52. g4 {[%emt 0:00:16]} hxg4 {[%emt 0:00:04]} 53. hxg4 {[%emt 0:00:01]} c4 {[%emt 0:00:18]} 54. Rh3+ {[%emt 0:00:11]} Kg8 {[%emt 0:00:03]} 55. Nh6+ {[%emt 0:00:20]} Kg7 {[%emt 0:00:08]} 56. Nf5+ {[%emt 0:00:01]} Kg8 {[%emt 0:00:27]} 57. bxc4 {[%emt 0:00:06]} b3 {[%emt 0:00:08]} 58. Nh6+ {[%emt 0:00:04]} Kg7 {[%emt 0:00:00]} 59. Nf5+ {[%emt 0:00:01]} Kg6 {[%emt 0:00:36]} 60. Rhf3 {[%emt 0:00:38]} b2 {[%emt 0:00:10]} 61. Nh4+ {[%emt 0:00:04]} Kh6 {[%emt 0:00:01]} 62. Nf5+ {[%emt 0:00:14]} Kg5 {[%emt 0:00:04]} 63. Nd4 {[%emt 0:00:11]} Rxf2+ {[%emt 0:00:06]} 64. Kxf2 {[%emt 0:00:05]} b1=Q {[%emt 0:00:44]} 65. Nxe6+ {[%emt 0:00:01]} Kxg4 {[%emt 0:00:00]} 66. Rf4+ {[%emt 0:00:02]} Kh5 {[%emt 0:00:01]} 67. Rf3 {[%emt 0:00:33]} Qc2+ {[%emt 0:00:04]} 68. Kg3 {[%emt 0:00:03]} Qg6+ {[%emt 0:00:02]} 0-1

[Event "Israeli U18-Team-ch 2024"]
[Site "Rishon LeZion"]
[Date "2024.08.01"]
[Round "6.9"]
[White "Shefer, Uri"]
[Black "Leib, Yoni"]
[Result "1-0"]
[ECO "E16"]
[WhiteElo "2063"]
[BlackElo "1977"]
[Annotator "RC"]
[PlyCount "143"]
[EventDate "2024.08.01"]
[EventType "team-tourn"]
[EventCountry "ISR"]
[SourceTitle "playchess.com"]
[Source "ChessBase"]
[SourceQuality "1"]
[TimeControl "3000+10"]

1. d4 {[%emt 0:00:01]} Nf6 {[%emt 0:00:32]} 2. c4 {[%emt 0:00:04]} e6 {[%emt 0:00:49]} 3. g3 {[%emt 0:00:03]} Bb4+ {[%emt 0:00:46]} 4. Nd2 {[%emt 0:00:04]} O-O {[%emt 0:00:24]} 5. Bg2 {[%emt 0:00:16]} d5 {[%emt 0:00:27]} 6. Ngf3 {[%emt 0:00:20]} b6 {[%emt 0:00:35]} 7. O-O {[%emt 0:00:16]} Bb7 {[%emt 0:00:06]} 8. Ne5 {[%emt 0:00:04]} a5 {[%emt 0:00:09]} 9. Ndf3 {[%emt 0:05:23]} Nbd7 {[%emt 0:03:53]} 10. Bf4 {[%emt 0:03:51]} Nxe5 {[%emt 0:04:50]} 11. Nxe5 {[%emt 0:03:08]} Bd6 {[%emt 0:03:08]} 12. Rc1 {[%emt 0:11:14]} c5 {[%emt 0:03:29]} 13. dxc5 {[%emt 0:04:08]} Bxc5 {[%emt 0:01:53]} 14. e3 {[%emt 0:04:15]} h6 {[%emt 0:04:25]} 15. Nd3 {[%emt 0:03:50]} Bd6 {[%emt 0:02:19]} 16. Qa4 {[%emt 0:01:31]} Qe7 {[%emt 0:13:04]} 17. cxd5 {[%emt 0:06:12]} e5 {[%emt 0:01:27]} 18. Nxe5 {[%emt 0:00:47]} Bxe5 {[%emt 0:00:10]} 19. d6 {[%emt 0:00:24]} Bxd6 {[%emt 0:05:12]} 20. Bxd6 {[%emt 0:00:03]} Qxd6 {[%emt 0:00:10]} 21. Bxb7 {[%emt 0:00:05]} Rab8 {[%emt 0:00:18]} 22. Bg2 {[%emt 0:00:31]} Qe5 {[%emt 0:00:37]} 23. Rc2 {[%emt 0:02:16]} Rfd8 {[%emt 0:00:09]} 24. Rfc1 {[%emt 0:00:24]} Nd7 {[%emt 0:01:07]} 25. Rd2 {[%emt 0:01:25]} Nc5 {[%emt 0:00:19]} 26. Qd1 {[%emt 0:00:02]} Qf6 {[%emt 0:00:21]} 27. Rc4 {[%emt 0:00:48]} Ne6 {[%emt 0:00:44]} 28. Rc6 {[%emt 0:03:25]} Qxb2 {[%emt 0:00:26]} 29. Rxb2 {[%emt 0:00:00]} Rxd1+ {[%emt 0:00:01]} 30. Bf1 {[%emt 0:00:00]} b5 {[%emt 0:02:01]} 31. Kg2 {[%emt 0:00:00]} b4 {[%emt 0:00:34]} 32. Ra6 {[%emt 0:00:00]} Rd5 {[%emt 0:00:19]} 33. a3 {[%emt 0:00:00]} Rc5 {[%emt 0:00:32]} 34. Be2 {[%emt 0:00:23]} Nc7 {[%emt 0:00:04]} 35. Ra7 {[%emt 0:00:24]} g6 {[%emt 0:00:22]} 36. e4 {[%emt 0:00:15]} Kg7 {[%emt 0:00:02]} 37. axb4 {[%emt 0:00:05]} Rbb5 {[%emt 0:00:36]} 38. bxc5 Rxc5 {[%emt 0:00:00]} 39. Rb4 {[%emt 0:00:28]} axb4 {[%emt 0:00:00]} 40. Rb7 {[%emt 0:00:01]} Rc2 {[%emt 0:00:00]} 41. Bd3 {[%emt 0:00:10]} Rc3 {[%emt 0:00:03]} 42. Be2 {[%emt 0:00:14]} b3 {[%emt 0:00:20]} 43. Bd1 {[%emt 0:00:14]} Ne6 {[%emt 0:00:24]} 44. Bxb3 {[%emt 0:00:13]} Kf6 {[%emt 0:00:10]} 45. Bd5 {[%emt 0:00:04]} g5 {[%emt 0:00:07]} 46. h3 {[%emt 0:00:08]} Ra3 {[%emt 0:00:10]} 47. Rb6 {[%emt 0:00:09]} Ke7 {[%emt 0:00:12]} 48. Rb7+ {[%emt 0:00:15]} Kf6 {[%emt 0:00:01]} 49. Rb6 {[%emt 0:00:01]} Ke7 {[%emt 0:00:00]} 50. e5 {[%emt 0:00:11]} Ra5 {[%emt 0:00:15]} 51. Rb7+ {[%emt 0:00:09]} Kf8 {[%emt 0:00:09]} 52. Bxe6 {[%emt 0:00:14]} fxe6 {[%emt 0:00:02]} 53. f4 {[%emt 0:00:10]} Kg8 {[%emt 0:00:24]} 54. Re7 {[%emt 0:00:07]} Ra6 {[%emt 0:00:08]} 55. Kf3 {[%emt 0:00:01]} Ra3+ {[%emt 0:00:15]} 56. Kg4 {[%emt 0:00:05]} h5+ {[%emt 0:00:01]} 57. Kxh5 {[%emt 0:00:26]} gxf4 {[%emt 0:00:01]} 58. gxf4 {[%emt 0:00:03]} Rxh3+ {[%emt 0:00:02]} 59. Kg6 {[%emt 0:00:00]} Rg3+ {[%emt 0:00:07]} 60. Kf6 {[%emt 0:00:06]} Rf3 {[%emt 0:00:01]} 61. Kg5 {[%emt 0:00:07]} Rg3+ {[%emt 0:00:01]} 62. Kh4 {[%emt 0:00:00]} Rg6 {[%emt 0:00:01]} 63. Kh5 {[%emt 0:00:04]} Rg2 {[%emt 0:00:38]} 64. Rxe6 {[%emt 0:00:02]} Kf7 {[%emt 0:00:01]} 65. Ra6 {[%emt 0:00:04]} Ke7 {[%emt 0:00:06]} 66. Rg6 {[%emt 0:00:07]} Rh2+ {[%emt 0:00:19]} 67. Kg5 {[%emt 0:00:01]} Kf7 {[%emt 0:00:03]} 68. Ra6 {[%emt 0:00:12]} Re2 {[%emt 0:00:07]} 69. Kf5 {[%emt 0:00:15]} Rb2 {[%emt 0:00:24]} 70. Ra7+ {[%emt 0:00:00]} Ke8 {[%emt 0:00:03]} 71. Kf6 {[%emt 0:00:17]} Rh2 {[%emt 0:00:22]} 72. e6 {[%emt 0:00:19]} 1-0